lending/lending_fUSD_20251106
["ID","MTS","AMOUNT","RATE_DAILY","PERIOD"]
[393272281,1762413367164,-240.982366,0.00015092,2]
[393272282,1762413367191,-9.017634,0.00015092,2]
[393272283,1762413411885,500.0,0.00038618,120]
[393272284,1762413412370,500.0,0.00038618,120]
[393272285,1762413412475,500.0,0.00038618,120]
[393272286,1762413412678,500.0,0.00038618,120]
[393272287,1762413412916,500.0,0.00038618,120]
[393272288,1762413413157,500.0,0.00038618,120]
[393272289,1762413413418,500.0,0.00038618,120]
[393272290,1762413413661,500.0,0.00038618,120]
[393272291,1762413413958,500.0,0.00038618,120]
[393272292,1762413414227,500.0,0.00038618,120]
[393272293,1762413414476,500.0,0.00038618,120]
[393272294,1762413414750,317.15250812,0.00038618,120]
[393272295,1762413417786,-192.802366,0.00015092,2]
[393272296,1762413417811,-62.27974164,0.00015092,2]
[393272297,1762413419580,-161.42238299,0.00015092,2]
[393272298,1762413421096,-181.827646,0.00015092,2]
[393272299,1762413422974,-94.47022937,0.00015092,2]
[393272300,1762413422997,-204.67113598,0.00015092,2]
[393272301,1762413425711,-265.14035515,0.00015092,2]
[393272302,1762413428602,-30.18850887,0.00015092,2]
[393272303,1762413428625,-196.05907674,0.00015092,2]
[393272304,1762413431425,-203.07658498,0.00015092,2]
[393272305,1762413432165,200.0,0.00038618,30]
[393272306,1762413433505,-100.86433828,0.00015092,2]
[393272307,1762413433530,-53.95918592,0.00015092,2]
[393272308,1762413435081,-170.04953627,0.00015092,2]
[393272309,1762413436647,-167.77672955,0.00015092,2]
[393272310,1762413438962,-108.21454826,0.00015092,2]
[393272311,1762413438987,-42.78545174,0.00015092,2]
[393272312,1762413440180,-369.23685824,0.00015092,2]
[393272313,1762413444899,-87.97769002,0.00015092,2]
[393272314,1762413444922,-86.56344477,0.00015092,2]
[393272315,1762413446465,-325.45886521,0.00015092,2]
[393272316,1762413448030,-87.97769002,0.00015092,2]
[393272317,1762413448052,-231.72648147,0.00015092,2]
[393272318,1762413451439,200.0,0.00015092,2]
[393272319,1762413511904,176.52865092,0.00015091,2]
[393272320,1762413511950,500.0,0.00015091,2]
[393272321,1762413511994,204.69761893,0.00015091,2]
[393272322,1762413512435,280.68075864,0.00015091,2]
[393272323,1762413513894,500.0,0.00015091,2]
[393272324,1762413513942,500.0,0.00015091,2]
[393272325,1762413513988,441.1015853,0.00015091,2]
[393272326,1762413514036,500.0,0.00015091,2]
[393272327,1762413514084,500.0,0.00015091,2]
[393272328,1762413514137,500.0,0.00015091,2]
[393272329,1762413514205,500.0,0.00015091,2]
[393272330,1762413514253,500.0,0.00015091,2]
[393272331,1762413514354,500.0,0.00015091,2]
[393272332,1762413514407,500.0,0.00015091,2]
[393272333,1762413514468,500.0,0.00015091,2]
[393272335,1762413601537,300.0,0.00015091,2]
[393272336,1762413601567,300.0,0.00015091,2]
[393272337,1762413602525,1200.0,0.00015091,2]
[393272338,1762413605052,1397.00138621,0.00015082,2]
[393272339,1762413605077,60.51861379,0.00015082,2]
[393272340,1762413659438,197.60590853,0.00014992,2]
[393272341,1762413662122,300.0,0.00015091,2]
[393272342,1762413686281,4067.1465,0.00014992,2]
[393272343,1762413692385,5374.73897768,0.00014992,2]
[393272344,1762413692408,6949.22302232,0.00014992,2]
[393272345,1762413700401,248.9797902,0.00015091,2]
[393272346,1762413703504,195.53722404,0.00015091,2]
[393272347,1762413720142,-268.27351853,0.00015092,2]
[393272348,1762413720174,-500.0,0.00015092,2]
[393272349,1762413720204,-500.0,0.00015092,2]
[393272350,1762413720233,-500.0,0.00015092,2]
[393272351,1762413720264,-500.0,0.00015092,2]
[393272352,1762413720293,-500.0,0.00015092,2]
[393272353,1762413720327,-500.0,0.00015092,2]
[393272354,1762413720356,-500.0,0.00015092,2]
[393272355,1762413720384,-500.0,0.00015092,2]
[393272356,1762413720412,-500.0,0.00015092,2]
[393272357,1762413720596,-500.0,0.00015092,2]
[393272358,1762413720627,-500.0,0.00015092,2]
[393272359,1762413720656,-500.0,0.00015092,2]
[393272360,1762413721927,300.0,0.00015091,2]
[393272361,1762413725516,151.0,0.00038607,120]
[393272362,1762413727133,-7183.00321868,0.00015092,2]
[393272363,1762413727241,-10000.01,0.00015092,2]
[393272364,1762413728517,151.0,0.00038607,120]
[393272365,1762413729088,166.2624544,0.00038607,30]
[393272366,1762413729186,151.0,0.00038607,120]
[393272367,1762413729202,-10000.01,0.00015092,2]
[393272368,1762413729263,-10000.01,0.00015092,2]
[393272369,1762413729353,-10000.01,0.00015092,2]
[393272370,1762413729489,-10000.01,0.00015092,2]
[393272371,1762413729584,-10000.01,0.00015092,2]
[393272372,1762413729760,151.0,0.00038607,120]
[393272373,1762413729798,-10000.01,0.00015092,2]
[393272374,1762413729848,-10000.01,0.00015092,2]
[393272375,1762413729988,-10000.01,0.00015092,2]
[393272376,1762413730452,151.0,0.00038607,120]
[393272377,1762413730961,151.0,0.00038607,120]
[393272378,1762413731596,151.0,0.00038607,120]
[393272379,1762413732250,151.0,0.00038607,120]
[393272380,1762413732276,-10000.01,0.00015092,2]
[393272381,1762413732468,-10000.01,0.00015092,2]
[393272382,1762413732882,151.0,0.00038607,120]
[393272383,1762413733541,151.0,0.00038607,120]
[393272384,1762413734648,151.0,0.00038607,120]
[393272385,1762413735336,151.0,0.00038607,120]
[393272386,1762413744293,-1647.837935,0.00015016,2]
[393272387,1762413744320,-201.43477536,0.00015019,2]
[393272388,1762413744367,-6301.46457928,0.00015092,2]
[393272389,1762413744439,-10000.01,0.00015092,2]
[393272390,1762413744596,-10000.01,0.00015092,2]
[393272391,1762413744717,-10000.01,0.00015092,2]
[393272392,1762413744820,-10000.01,0.00015092,2]
[393272393,1762413744933,-10000.01,0.00015092,2]
[393272394,1762413745051,-10000.01,0.00015092,2]
[393272395,1762413745198,-10000.01,0.00015092,2]
[393272396,1762413747392,-10000.01,0.00015092,2]
[393272397,1762413750463,202.48391883,0.00038607,120]
[393272398,1762413753768,-10000.01,0.00015092,2]
[393272399,1762413753995,-10000.01,0.00015092,2]
[393272400,1762413754117,-10000.01,0.00015092,2]
[393272401,1762413754217,-10000.01,0.00015092,2]
[393272402,1762413754327,-10000.01,0.00015092,2]
[393272403,1762413754427,-10000.01,0.00015092,2]
[393272404,1762413754542,-10000.01,0.00015092,2]
[393272405,1762413754667,-10000.01,0.00015092,2]
[393272406,1762413754785,-1786.31248624,0.00015092,2]
[393272407,1762413755574,500.0,0.00015091,2]
[393272408,1762413759486,500.0,0.00015091,2]
[393272409,1762413759541,486.60131354,0.00015091,2]
[393272410,1762413800688,500.0,0.00038607,30]
[393272411,1762413809621,200.0,0.00015056,2]
[393272412,1762413810009,4740.78371398,0.00015034,2]
[393272413,1762413810039,2221.94312302,0.00015034,2]
[393272414,1762413892323,3369.21,0.00015011,2]
[393272415,1762413894456,4408.85687698,0.00015092,2]
[393272416,1762413894495,10000.01,0.00015092,2]
[393272417,1762413894525,10000.01,0.00015092,2]
[393272418,1762413894560,10000.01,0.00015092,2]
[393272419,1762413894593,10000.01,0.00015092,2]
[393272420,1762413894635,10000.01,0.00015092,2]
[393272421,1762413894666,10000.01,0.00015092,2]
[393272422,1762413894693,10000.01,0.00015092,2]
[393272423,1762413894721,10000.01,0.00015092,2]
[393272424,1762413894750,3915.31495012,0.00015092,2]
[393272425,1762413897674,693.36098756,0.00038623,30]
[393272498,1762413942155,354.2572,0.00014992,2]
[393272499,1762413960491,5730.43784988,8e-05,2]
[393272500,1762413960516,3076.84633032,8e-05,2]
[393272501,1762414021652,-500.0,0.0001511,2]
[393272502,1762414024979,200.0,0.00038623,120]
[393272503,1762414025454,500.0,0.00038623,120]
[393272504,1762414025603,200.0,0.00038623,120]
[393272505,1762414025980,500.0,0.00038623,120]
[393272506,1762414026591,500.0,0.00038623,120]
[393272507,1762414027207,500.0,0.00038623,120]
[393272508,1762414027317,151.0,0.00038623,120]
[393272509,1762414027454,203.14874139,0.00038623,120]
[393272510,1762414027812,500.0,0.00038623,120]
[393272511,1762414027943,151.0,0.00038623,120]
[393272512,1762414028427,500.0,0.00038623,120]
[393272513,1762414028750,151.0,0.00038623,120]
[393272514,1762414029072,500.0,0.00038623,120]
[393272515,1762414029407,151.0,0.00038623,120]
[393272516,1762414029701,500.0,0.00038623,120]
[393272517,1762414030028,151.0,0.00038623,120]
[393272518,1762414030307,500.0,0.00038623,120]
[393272519,1762414030659,151.0,0.00038623,120]
[393272520,1762414031298,151.0,0.00038623,120]
[393272521,1762414032040,151.0,0.00038623,120]
[393272522,1762414032638,151.0,0.00038623,120]
[393272523,1762414033267,151.0,0.00038623,120]
[393272524,1762414033899,151.0,0.00038623,120]
[393272535,1762414036766,500.0,0.00038623,120]
[393272541,1762414068170,250.0,0.00014878,2]
[393272542,1762414069410,8750.01,0.00015,2]
[393272543,1762414069434,10000.01,0.00015,2]
[393272544,1762414069458,10000.01,0.00015,2]
[393272545,1762414069482,10000.01,0.00015,2]
[393272546,1762414069506,10000.01,0.00015,2]
[393272547,1762414069530,10000.01,0.00015,2]
[393272548,1762414069555,10000.01,0.00015,2]
[393272549,1762414070885,-151.0,0.00015,2]
[393272550,1762414073277,-300.0,0.00015,2]
[393272551,1762414083640,-300.0,0.00014999,2]
[393272552,1762414087383,-895.77864216,0.00015,2]
[393272553,1762414087554,-10000.01,0.00015,2]
[393272554,1762414087718,-10000.01,0.00015,2]
[393272555,1762414089532,-10000.01,0.00015,2]
[393272556,1762414089838,-4494.31073995,0.00015,2]
[393272557,1762414089861,-1011.3885201,0.00015,2]
[393272558,1762414090625,250.0,0.00015057,2]
[393272559,1762414106842,265.9979551,0.000107,2]
[393272560,1762414114294,9484.0120449,0.0001,2]
[393272561,1762414114317,3545.05169448,0.0001,2]
[393272562,1762414117300,957.67846939,0.00013699,2]
[393272564,1762414135219,150.0,0.00014868,2]
[393272565,1762414153437,5347.27983613,0.00015081,2]
[393272566,1762414153463,10000.01,0.00015081,2]
[393272567,1762414153487,1317.48199297,0.00015081,2]
[393272577,1762414231655,-195.0,0.00015115,2]
[393272578,1762414231665,-195.0,0.00015116,2]
[393272579,1762414231675,-300.0,0.00015116,2]
[393272580,1762414231686,-250.0,0.00015116,2]
[393272581,1762414231695,-195.0,0.0001517,2]
[393272582,1762414231705,-300.0,0.00015185,2]
[393272583,1762414231714,-300.0,0.00015185,2]
[393272584,1762414231723,-307.59931276,0.00015185,2]
[393272585,1762414231732,-502.9959122,0.000154,2]
[393272586,1762414231741,-151.0,0.00015425,2]
[393272587,1762414231750,-151.0,0.00015433,2]
[393272588,1762414231759,-151.0,0.00015444,2]
[393272589,1762414231768,-151.0,0.00015451,2]
[393272591,1762414231778,-300.0,0.00015588,2]
[393272593,1762414231788,-300.0,0.00015588,2]
[393272598,1762414231993,-1200.0,0.00015588,2]
[393272599,1762414232006,-201.0,0.00015588,2]
[393272600,1762414232016,-300.0,0.00015588,2]
[393272601,1762414232025,-1200.0,0.00015589,2]
[393272602,1762414232036,-500.0,0.0001559,2]
[393272603,1762414232045,-197.15605104,0.0001559,2]
[393272604,1762414232055,-341.10573091,0.0001559,2]
[393272605,1762414232065,-500.0,0.0001559,2]
[393272606,1762414232074,-273.67609621,0.0001559,2]
[393272607,1762414232084,-10.1561513,0.00015591,2]
[393272608,1762414232099,-2000.0,0.00015591,2]
[393272609,1762414232110,-6562.87332897,0.00015591,2]
[393272610,1762414232121,-113256.01712395,0.00015591,2]
[393272611,1762414232132,-6234.91939873,0.00015591,2]
[393272612,1762414232141,-221.26767262,0.00015613,2]
[393272613,1762414232150,-210.83989585,0.00015713,2]
[393272614,1762414232159,-1843.71642365,0.00015807,2]
[393272615,1762414232168,-977.6371,0.00015814,2]
[393272616,1762414232178,-2500.0,0.00015814,2]
[393272617,1762414232189,-4649.7214,0.00015814,2]
[393272618,1762414232198,-360.37548634,0.00015814,2]
[393272619,1762414232207,-10341.42330034,0.00015814,2]
[393272620,1762414232216,-713.13,0.00015904,2]
[393272621,1762414232226,-151.0,0.00015904,2]
[393272622,1762414232235,-151.0,0.00015904,2]
[393272623,1762414232245,-151.0,0.00015904,2]
[393272624,1762414232254,-151.0,0.00015904,2]
[393272625,1762414232263,-151.0,0.00015904,2]
[393272626,1762414232272,-195.45561367,0.00015904,2]
[393272627,1762414232281,-151.0,0.00015904,2]
[393272628,1762414232290,-151.0,0.00015904,2]
[393272629,1762414232299,-151.0,0.00015904,2]
[393272630,1762414232307,-151.0,0.00015904,2]
[393272631,1762414232317,-151.0,0.00015904,2]
[393272632,1762414232328,-151.0,0.00015904,2]
[393272633,1762414232339,-151.0,0.00015904,2]
[393272634,1762414232348,-151.0,0.00015904,2]
[393272635,1762414232357,-151.0,0.00015904,2]
[393272636,1762414232367,-151.0,0.00015904,2]
[393272637,1762414232376,-151.0,0.00015904,2]
[393272638,1762414232385,-151.0,0.00015904,2]
[393272639,1762414232395,-151.0,0.00015904,2]
[393272640,1762414232404,-151.0,0.00015904,2]
[393272641,1762414232413,-151.0,0.00015904,2]
[393272642,1762414232423,-151.0,0.00015904,2]
[393272643,1762414232432,-151.0,0.00015904,2]
[393272644,1762414232440,-151.0,0.00015904,2]
[393272645,1762414232450,-151.0,0.00015904,2]
[393272646,1762414232460,-151.0,0.00015904,2]
[393272647,1762414232469,-151.0,0.00015911,2]
[393272648,1762414232478,-857.57011612,0.00015913,2]
[393272649,1762414232489,-505.65724167,0.00015913,2]
[393272650,1762414232498,-500.0,0.00015913,2]
[393272651,1762414232508,-500.0,0.00015913,2]
[393272652,1762414232518,-554.44148979,0.00015913,2]
[393272653,1762414232527,-500.0,0.00015913,2]
[393272654,1762414232537,-500.0,0.00015913,2]
[393272655,1762414232546,-500.0,0.00015913,2]
[393272656,1762414232555,-506.84083988,0.00015913,2]
[393272657,1762414232564,-500.0,0.00015913,2]
[393272658,1762414232574,-500.0,0.00015913,2]
[393272659,1762414232583,-500.0,0.00015913,2]
[393272660,1762414232602,-500.0,0.00015913,2]
[393272661,1762414232616,-500.0,0.00015913,2]
[393272662,1762414232625,-500.0,0.00015913,2]
[393272663,1762414232635,-500.0,0.00015913,2]
[393272664,1762414232644,-500.0,0.00015913,2]
[393272665,1762414232655,-500.0,0.00015913,2]
[393272666,1762414232664,-522.47521665,0.00015913,2]
[393272667,1762414232673,-45304.05586453,0.00015914,2]
[393272668,1762414232686,-38701.87578599,0.00015914,2]
[393272669,1762414232703,-8359.12549372,0.00015914,2]
[393272674,1762414237413,-991.32924,0.00015162,3]
[393272675,1762414237509,-7.67076,0.00015162,3]
[393272676,1762414237519,-151.0,0.00015416,2]
[393272677,1762414237528,-517.84451115,0.00015588,2]
[393272678,1762414237537,-500.0,0.00015588,2]
[393272679,1762414237547,-500.0,0.00015588,2]
[393272680,1762414237556,-500.0,0.00015588,2]
[393272681,1762414237566,-28.26865657,0.00015588,2]
[393272682,1762414237577,-471.73134343,0.00015588,2]
[393272683,1762414237587,-500.0,0.00015588,2]
[393272684,1762414237600,-500.0,0.00015588,2]
[393272687,1762414237619,-52.67719865,0.00015588,2]
[393272696,1762414239538,-372.24,0.00015588,2]
[393272700,1762414240386,-1.7e-07,0.00015588,2]
[393272701,1762414240625,-75.08280118,0.00015588,2]
[393272702,1762414240635,-500.0,0.00015588,2]
[393272703,1762414240646,-500.0,0.00015588,2]
[393272704,1762414240659,-500.0,0.00015588,2]
[393272705,1762414240669,-361.0865425,0.00015588,2]
[393272706,1762414240680,-500.0,0.00015588,2]
[393272707,1762414240689,-327634.94285576,0.00015914,2]
[393272708,1762414240698,-1000.0,0.00015914,2]
[393272709,1762414240708,-171.54256659,0.00015973,2]
[393272710,1762414240717,-160.01934734,0.00015973,2]
[393272711,1762414240726,-500.0,0.00015973,2]
[393272712,1762414240735,-501.03451203,0.00015973,2]
[393272713,1762414240744,-500.0,0.00015973,2]
[393272714,1762414240754,-500.0,0.00015973,2]
[393272715,1762414240763,-500.0,0.00015973,2]
[393272716,1762414240772,-500.0,0.00015973,2]
[393272717,1762414240781,-500.0,0.00015973,2]
[393272718,1762414240790,-500.0,0.00015973,2]
[393272719,1762414240799,-173.56770186,0.00015973,2]
[393272720,1762414240808,-500.0,0.00015973,2]
[393272721,1762414240817,-404.88651497,0.00015973,2]
[393272722,1762414240826,-500.0,0.00015973,2]
[393272723,1762414240835,-500.0,0.00015973,2]
[393272724,1762414240845,-500.0,0.00015973,2]
[393272725,1762414240854,-150.0,0.00016004,2]
[393272726,1762414240863,-150.0,0.00016004,2]
[393272727,1762414240872,-500.0,0.00016004,2]
[393272728,1762414240881,-500.0,0.00016004,2]
[393272729,1762414240890,-500.0,0.00016004,2]
[393272730,1762414240900,-150.0,0.00016004,2]
[393272731,1762414240911,-500.0,0.00016004,2]
[393272732,1762414240920,-500.0,0.00016004,2]
[393272733,1762414240929,-500.0,0.00016004,2]
[393272734,1762414240938,-500.0,0.00016004,2]
[393272735,1762414240947,-408.3599179,0.00016004,2]
[393272736,1762414240956,-500.0,0.00016004,2]
[393272737,1762414240965,-300.0,0.00016004,2]
[393272738,1762414240975,-152.08698658,0.00016004,2]
[393272739,1762414240984,-500.0,0.00016004,2]
[393272740,1762414240995,-150.0,0.00016004,2]
[393272741,1762414241006,-599.0,0.00016004,2]
[393272742,1762414241015,-150.0,0.00016004,2]
[393272743,1762414241026,-150.0,0.00016004,2]
[393272744,1762414241036,-500.0,0.00016004,2]
[393272745,1762414241045,-150.0,0.00016004,2]
[393272746,1762414241054,-150.0,0.00016004,2]
[393272747,1762414241063,-500.0,0.00016004,2]
[393272748,1762414241072,-150.0,0.00016004,2]
[393272749,1762414241082,-150.0,0.00016004,2]
[393272750,1762414241092,-500.0,0.00016004,2]
[393272751,1762414241102,-150.0,0.00016004,2]
[393272752,1762414241111,-500.0,0.00016004,2]
[393272753,1762414241120,-150.0,0.00016004,2]
[393272754,1762414241132,-500.0,0.00016004,2]
[393272755,1762414241142,-500.0,0.00016004,2]
[393272756,1762414241152,-152.54268606,0.00016004,2]
[393272757,1762414241162,-152.00625849,0.00016004,2]
[393272758,1762414241172,-150.0,0.00016004,2]
[393272759,1762414241181,-202.37031601,0.00016004,2]
[393272760,1762414241190,-150.0,0.00016004,2]
[393272761,1762414241199,-500.0,0.00016013,2]
[393272762,1762414241211,-500.0,0.00016013,2]
[393272763,1762414241220,-507.19276481,0.00016013,2]
[393272764,1762414241230,-500.0,0.00016013,2]
[393272765,1762414241239,-5000.0,0.00016016,2]
[393272766,1762414241249,-360.37548625,0.00016046,2]
[393272767,1762414241259,-10341.42330027,0.00016046,2]
[393272768,1762414241268,-1083.77,0.00016116,2]
[393272769,1762414241277,-19778.52,0.00016116,2]
[393272770,1762414241287,-2354.23,0.00016116,2]
[393272771,1762414241296,-1311.24,0.00016116,2]
[393272772,1762414241305,-150.0,0.00016141,2]
[393272773,1762414241313,-150.0,0.00016141,2]
[393272774,1762414241323,-500.0,0.00016141,2]
[393272775,1762414241332,-500.0,0.00016141,2]
[393272776,1762414241341,-505.03214734,0.00016141,2]
[393272777,1762414241351,-150.0,0.00016141,2]
[393272778,1762414241360,-500.0,0.00016141,2]
[393272779,1762414241370,-300.0,0.00016141,2]
[393272780,1762414241379,-500.0,0.00016141,2]
[393272781,1762414241388,-150.0,0.00016141,2]
[393272782,1762414241397,-599.0,0.00016141,2]
[393272783,1762414241410,-150.0,0.00016141,2]
[393272784,1762414241419,-150.0,0.00016141,2]
[393272785,1762414241427,-500.0,0.00016141,2]
[393272786,1762414241437,-154.15552868,0.00016141,2]
[393272787,1762414241447,-500.0,0.00016141,2]
[393272788,1762414241456,-150.0,0.00016141,2]
[393272789,1762414241465,-500.0,0.00016141,2]
[393272790,1762414241474,-500.0,0.00016141,2]
[393272791,1762414241484,-500.0,0.00016141,2]
[393272792,1762414241493,-500.0,0.00016141,2]
[393272793,1762414241502,-150.0,0.00016141,2]
[393272794,1762414241511,-150.0,0.00016141,2]
[393272795,1762414241520,-6642.96368447,0.00016167,2]
[393272796,1762414241529,-713.13,0.00016178,2]
[393272797,1762414241539,-5000.00568085,0.000162,5]
[393272798,1762414241548,-465.64,0.00016242,2]
[393272799,1762414241558,-360.37548625,0.00016278,2]
[393272800,1762414241567,-10341.42330027,0.00016278,2]
[393272801,1762414241576,-150.0,0.00016278,2]
[393272802,1762414241585,-150.0,0.00016278,2]
[393272803,1762414241595,-500.0,0.00016278,2]
[393272804,1762414241608,-251.64103016,0.00016278,2]
[393272805,1762414241617,-150.0,0.00016278,2]
[393272806,1762414241626,-500.0,0.00016278,2]
[393272807,1762414241635,-300.0,0.00016278,2]
[393272808,1762414241839,-500.0,0.00016278,2]
[393272809,1762414241850,-150.0,0.00016278,2]
[393272810,1762414241860,-599.0,0.00016278,2]
[393272811,1762414241869,-150.0,0.00016278,2]
[393272812,1762414241878,-150.0,0.00016278,2]
[393272813,1762414241888,-500.0,0.00016278,2]
[393272814,1762414241897,-392.08320953,0.00016278,2]
[393272815,1762414241906,-213.05879372,0.00016278,2]
[393272816,1762414241916,-500.0,0.00016278,2]
[393272817,1762414241925,-506.64145389,0.00016278,2]
[393272818,1762414241935,-500.0,0.00016278,2]
[393272819,1762414241946,-500.0,0.00016278,2]
[393272820,1762414241955,-150.0,0.00016278,2]
[393272821,1762414241964,-150.0,0.00016278,2]
[393272822,1762414241974,-6691.48565933,0.00016336,2]
[393272823,1762414241983,-511.72,0.00016356,2]
[393272824,1762414241992,-228.39525195,0.00016415,2]
[393272825,1762414242001,-150.0,0.00016415,2]
[393272826,1762414242010,-500.0,0.00016415,2]
[393272827,1762414242020,-200.84185402,0.00016415,2]
[393272828,1762414242029,-500.0,0.00016415,2]
[393272829,1762414242038,-300.0,0.00016415,2]
[393272830,1762414242049,-500.0,0.00016415,2]
[393272831,1762414242058,-200.0,0.00016415,2]
[393272832,1762414242067,-599.0,0.00016415,2]
[393272833,1762414242077,-266.33548393,0.00016415,2]
[393272834,1762414242086,-150.0,0.00016415,2]
[393272835,1762414242095,-500.0,0.00016415,2]
[393272836,1762414242105,-500.0,0.00016415,2]
[393272837,1762414242114,-500.0,0.00016415,2]
[393272838,1762414242123,-500.0,0.00016415,2]
[393272839,1762414242132,-150.0,0.00016415,2]
[393272840,1762414242142,-150.0,0.00016415,2]
[393272841,1762414242151,-150.0,0.00016438,2]
[393272842,1762414242161,-500.0,0.00016438,2]
[393272844,1762414242171,-500.0,0.00016438,2]
[393272845,1762414242179,-500.0,0.00016438,2]
[393272847,1762414242189,-163.35,0.0001644,2]
[393272849,1762414242198,-1478.44438402,0.00016445,2]
[393272852,1762414242208,-713.13,0.00016452,2]
[393272854,1762414242217,-15192.32989186,0.000165,2]
[393272855,1762414242227,-250.0,0.000165,2]
[393272858,1762414242235,-360.37548625,0.00016509,2]
[393272860,1762414242245,-10341.42330027,0.00016509,2]
[393272863,1762414242254,-1000.0,0.00016521,2]
[393272866,1762414242263,-406.97735465,0.00016521,2]
[393272869,1762414242272,-782.33179847,0.00016521,2]
[393272871,1762414242281,-1000.0,0.00016521,2]
[393272874,1762414242291,-1000.0,0.00016521,2]
[393272876,1762414242300,-406.62378491,0.00016521,2]
[393272878,1762414242310,-1000.0,0.00016521,2]
[393272880,1762414242319,-1000.0,0.00016521,2]
[393272882,1762414242328,-349.30178506,0.00016521,2]
[393272884,1762414242338,-8643.02421677,0.00016525,2]
[393272886,1762414242348,-150.0,0.00016552,2]
[393272888,1762414242357,-500.0,0.00016552,2]
[393272890,1762414242366,-450.0,0.00016552,2]
[393272894,1762414242375,-300.0,0.00016552,2]
[393272897,1762414242384,-500.0,0.00016552,2]
[393272900,1762414242394,-599.0,0.00016552,2]
[393272902,1762414242403,-150.0,0.00016552,2]
[393272904,1762414242413,-500.0,0.00016552,2]
[393272906,1762414242423,-328.38259742,0.00016552,2]
[393272908,1762414242433,-500.0,0.00016552,2]
[393272910,1762414242441,-500.0,0.00016552,2]
[393272912,1762414242451,-214.45499352,0.00016552,2]
[393272914,1762414242460,-150.0,0.00016552,2]
[393272916,1762414242470,-150.0,0.00016575,2]
[393272918,1762414242479,-614.46048544,0.00016589,2]
[393272921,1762414242489,-200.0,0.00016621,2]
[393272923,1762414242498,-200.50577999,0.00016621,2]
[393272926,1762414242517,-238.10507591,0.00016621,2]
[393272928,1762414242528,-300.0,0.00016621,2]
[393272930,1762414242537,-620.21000325,0.00016621,2]
[393272932,1762414242547,-2500.0,0.00016621,2]
[393272934,1762414242556,-195.0,0.00016626,2]
[393272936,1762414242566,-300.0,0.00016626,2]
[393272938,1762414242576,-300.0,0.00016626,2]
[393272940,1762414242592,-300.0,0.00016626,2]
[393272942,1762414242606,-300.0,0.00016626,2]
[393272944,1762414242615,-300.0,0.00016626,2]
[393272946,1762414242625,-283.7415811,0.00016627,2]
[393272948,1762414242635,-250.0,0.00016627,2]
[393272950,1762414242645,-195.0,0.00016627,2]
[393272952,1762414242655,-300.0,0.00016627,2]
[393272954,1762414242665,-200.56676977,0.00016627,2]
[393272956,1762414242676,-2751.0,0.00016644,2]
[393272958,1762414242685,-320.48,0.00016644,2]
[393272960,1762414242695,-88324.2518271,0.00016672,2]
[393272962,1762414242705,-200.54651287,0.00016689,2]
[393272964,1762414242714,-500.0,0.00016689,2]
[393272966,1762414242725,-150.0,0.00016689,2]
[393272968,1762414242734,-500.0,0.00016689,2]
[393272970,1762414242744,-599.0,0.00016689,2]